bitfinex/quotes_BTCUSD_20240723
["timestamp","ask_amount","ask_price","bid_price","bid_amount"]
[1721718086171,0.64425,66600.0,66599.0,0.025]
[1721718086378,0.29395,66600.0,66599.0,0.025]
[1721718086904,0.29395,66600.0,66599.0,0.17201991]
[1721718086905,0.002,66600.0,66599.0,0.17201991]
[1721718087269,0.002,66600.0,66599.0,0.17517088]
[1721718087836,0.002,66600.0,66599.0,0.17201991]
[1721718088128,0.002,66600.0,66599.0,0.17517088]
[1721718089249,0.002,66600.0,66599.0,0.17201991]
[1721718089467,0.002,66600.0,66599.0,0.17517088]
[1721718090276,0.20215,66600.0,66599.0,0.17517088]
[1721718090415,0.052,66600.0,66599.0,0.17201991]
[1721718090840,0.20215,66600.0,66599.0,0.17201991]
[1721718091678,0.002,66600.0,66599.0,0.17201991]
[1721718092236,0.20215,66600.0,66599.0,0.17201991]
[1721718093759,0.002,66600.0,66599.0,0.17201991]
[1721718094520,0.002,66600.0,66599.0,0.17516849]
[1721718095479,0.1917,66600.0,66599.0,0.17516849]
[1721718095687,0.1917,66600.0,66599.0,0.17201991]
[1721718095881,0.1917,66600.0,66599.0,0.17516838]
[1721718096628,0.34185,66600.0,66599.0,0.02814847]
[1721718096824,0.94245,66600.0,66599.0,0.025]
[1721718097069,1.40965725,66600.0,66599.0,0.025]
[1721718097318,1.56703792,66600.0,66599.0,0.025]
[1721718097456,1.26673792,66600.0,66599.0,0.025]
[1721718098250,1.48971265,66600.0,66599.0,0.025]
[1721718098449,1.56663805,66600.0,66599.0,0.025]
[1721718099017,1.56563805,66600.0,66599.0,0.014]
[1721718099428,1.57063805,66600.0,66599.0,0.014]
[1721718099652,1.101064,66599.0,66598.0,0.000924]
[1721718099852,1.50976493,66599.0,66598.0,0.000924]
[1721718100067,1.81006893,66599.0,66598.0,0.000924]
[1721718100277,1.238353,66587.0,66586.0,0.009295]
[1721718100492,1.95802582,66587.0,66586.0,0.009295]
[1721718100705,2.10498847,66587.0,66586.0,0.009295]
[1721718101345,1.754192,66583.0,66582.0,0.00011]
[1721718101562,2.3775408,66583.0,66582.0,0.00011]
[1721718101731,2.17389014,66583.0,66582.0,0.0032586]
[1721718101935,2.26856567,66583.0,66582.0,0.00011]
[1721718102141,0.05,66581.0,66576.0,0.67585955]
[1721718102341,2.12852077,66577.0,66576.0,0.67585955]
[1721718102545,2.31808022,66577.0,66576.0,0.67585955]
[1721718102750,1.76681787,66577.0,66576.0,0.67585955]
[1721718103310,1.87791938,66577.0,66576.0,0.67585955]
[1721718103751,1.88891938,66577.0,66576.0,0.67685955]
[1721718103977,1.98359491,66577.0,66576.0,0.67906083]
[1721718104188,1.81554051,66577.0,66576.0,0.68106083]
[1721718104390,0.36723094,66577.0,66576.0,0.68106083]
[1721718104602,0.172,66577.0,66576.0,0.68006083]
[1721718105057,0.177,66577.0,66576.0,0.68006083]
[1721718105743,0.177,66577.0,66576.0,0.67906083]
[1721718105744,0.155,66577.0,66576.0,0.67906083]
[1721718105881,0.19282,66577.0,66576.0,0.68006083]
[1721718106340,0.069,66577.0,66576.0,0.67906083]
[1721718106673,0.077,66577.0,66576.0,0.67906083]
[1721718106983,0.072,66577.0,66576.0,0.67906083]
[1721718107188,0.073,66577.0,66576.0,0.67906083]
[1721718107652,0.051,66577.0,66576.0,0.67906083]
[1721718107842,0.05,66577.0,66576.0,0.67906083]
[1721718108628,0.051,66577.0,66576.0,0.68806083]
[1721718108820,0.001,66577.0,66576.0,0.68806083]
[1721718109197,0.004,66577.0,66576.0,0.68806083]
[1721718109317,0.054,66577.0,66576.0,0.68806083]
[1721718109515,0.051,66577.0,66576.0,0.68806083]
[1721718109708,0.051,66577.0,66576.0,0.69006083]
[1721718112516,0.07442,66577.0,66576.0,0.69006083]
[1721718112754,0.051,66577.0,66576.0,0.69006083]
[1721718112957,0.051,66577.0,66576.0,0.69098483]
[1721718113628,0.001,66577.0,66576.0,0.84118883]
[1721718113866,0.001,66577.0,66576.0,1.88943274]
[1721718114067,0.001,66577.0,66576.0,1.58902474]
[1721718114894,0.5298,66591.0,66576.0,1.58902474]
[1721718114895,0.05,66588.0,66587.0,0.150179]
[1721718115114,0.4696,66591.0,66588.0,0.150177]
[1721718115115,0.05,66590.0,66588.0,0.150177]
[1721718115341,0.4696,66591.0,66590.0,0.150172]
[1721718115597,0.4696,66591.0,66590.0,0.435517]
[1721718115784,0.4696,66591.0,66590.0,0.13842694]
[1721718116201,0.4696,66591.0,66590.0,0.88613685]
[1721718116388,0.05,66597.0,66590.0,0.88613685]
[1721718116389,0.05,66597.0,66596.0,0.450477]
[1721718116596,0.05,66597.0,66596.0,0.750795]
[1721718116938,0.05,66597.0,66596.0,0.75403055]
[1721718117141,0.4696,66603.0,66602.0,0.150145]
[1721718117345,0.00084,66605.0,66604.0,0.450423]
[1721718117756,0.00084,66605.0,66604.0,0.15335839]
[1721718118164,0.00084,66605.0,66604.0,0.45364039]
[1721718118594,0.00084,66605.0,66604.0,0.44664039]
[1721718119017,0.00084,66605.0,66604.0,0.73392239]
[1721718119711,0.00084,66605.0,66604.0,0.74092239]
[1721718119712,0.00184,66605.0,66604.0,0.74092239]
[1721718119966,0.00184,66605.0,66604.0,1.2624243]
[1721718120125,0.00184,66605.0,66604.0,1.5787063]
[1721718120628,0.00284,66605.0,66604.0,1.5877063]
[1721718121461,0.00284,66605.0,66604.0,1.5937063]
[1721718121681,0.00084,66605.0,66604.0,2.15646696]
[1721718122300,0.00084,66605.0,66604.0,2.26996696]
[1721718122543,0.00084,66605.0,66604.0,2.28396696]
[1721718122974,0.00084,66605.0,66604.0,2.26996696]
[1721718123181,0.00184,66605.0,66604.0,2.28396696]
[1721718123385,0.00084,66605.0,66604.0,2.28396696]
[1721718123818,0.00184,66605.0,66604.0,2.29796696]
[1721718124229,0.00184,66605.0,66604.0,2.18745095]
[1721718124413,0.00184,66605.0,66604.0,2.59797611]
[1721718124564,0.00184,66605.0,66604.0,2.45101346]
[1721718125145,0.00184,66605.0,66604.0,2.34988343]
[1721718127689,0.00184,66605.0,66604.0,2.04960143]
[1721718127890,0.00184,66605.0,66604.0,1.99960143]
[1721718128093,0.00184,66605.0,66604.0,2.04960143]
[1721718128269,0.00184,66605.0,66604.0,2.14656408]
[1721718128845,0.00184,66605.0,66604.0,2.19656408]
[1721718130291,0.00184,66605.0,66604.0,2.14656408]
[1721718131132,0.00184,66605.0,66604.0,1.99960143]
[1721718131341,0.00184,66605.0,66604.0,1.59881943]
[1721718131960,0.00184,66605.0,66604.0,1.23833743]
[1721718132161,0.00184,66605.0,66604.0,1.2292223]
[1721718132588,0.00184,66605.0,66604.0,1.5295043]
[1721718132794,0.00184,66605.0,66604.0,1.55554339]
[1721718132997,0.00184,66605.0,66604.0,1.52754339]
[1721718132998,0.00084,66605.0,66604.0,1.52754339]
[1721718133222,0.00084,66605.0,66604.0,1.5015043]
[1721718133431,0.00184,66605.0,66604.0,1.5295043]
[1721718133918,0.00284,66605.0,66604.0,1.5435043]
[1721718134749,0.00284,66605.0,66604.0,1.5295043]
[1721718135170,0.00284,66605.0,66604.0,1.5435043]
[1721718136985,0.00284,66605.0,66604.0,1.2432223]
[1721718138336,0.00284,66605.0,66604.0,1.5435043]
[1721718138586,0.00284,66605.0,66604.0,1.5665043]
[1721718139404,0.00284,66605.0,66604.0,1.5435043]
[1721718140245,0.00284,66605.0,66604.0,1.2432223]
[1721718140797,0.00284,66605.0,66604.0,1.5435043]
[1721718141898,0.00284,66605.0,66604.0,1.69046695]
[1721718142124,0.00284,66605.0,66604.0,1.77776695]
[1721718142521,0.00284,66605.0,66604.0,2.07804895]
[1721718142942,0.00284,66605.0,66604.0,2.26714518]
[1721718143485,0.00284,66605.0,66604.0,2.31714518]
[1721718144913,0.00284,66605.0,66604.0,2.26714518]
[1721718145304,0.00284,66605.0,66604.0,2.26724985]
[1721718145502,0.00284,66605.0,66604.0,1.7425052]
[1721718145702,0.00284,66605.0,66604.0,1.6782052]
[1721718147127,0.00284,66605.0,66604.0,1.6552052]
[1721718147528,0.00284,66605.0,66604.0,1.3549232]
[1721718148262,0.00284,66605.0,66604.0,1.5435043]
[1721718148438,0.00284,66605.0,66604.0,1.65540934]
[1721718149500,0.00284,66605.0,66604.0,1.35512734]
[1721718151318,0.00284,66605.0,66604.0,1.2432223]
[1721718151659,0.00284,66605.0,66604.0,1.35542548]
[1721718151971,0.00284,66605.0,66604.0,1.35517481]
[1721718152177,0.00284,66605.0,66604.0,1.41707481]
[1721718152607,0.00284,66605.0,66604.0,1.71735681]
[1721718153222,0.00284,66605.0,66604.0,2.04063881]
[1721718153434,0.00284,66605.0,66604.0,2.16793881]
[1721718153854,0.00284,66605.0,66604.0,2.30789825]
[1721718154063,0.00284,66605.0,66604.0,2.4548609]
[1721718154314,0.00284,66605.0,66604.0,2.30696006]
[1721718154514,0.00284,66605.0,66604.0,2.11699967]
[1721718154719,0.00284,66605.0,66604.0,2.16699967]
[1721718154915,0.00284,66605.0,66604.0,2.3072501]
[1721718155740,0.00284,66605.0,66604.0,2.16714881]
[1721718155941,0.00284,66605.0,66604.0,2.30697598]
[1721718156166,0.00284,66605.0,66604.0,3.52312063]
[1721718156345,0.00284,66605.0,66604.0,3.58546845]
[1721718156563,0.00284,66605.0,66604.0,3.06628645]
[1721718156864,0.00284,66605.0,66604.0,3.36656845]
[1721718157066,0.00284,66605.0,66604.0,3.35256845]
[1721718157244,0.00284,66605.0,66604.0,3.05228645]
[1721718157440,0.00084,66605.0,66604.0,3.3245663]
[1721718157664,0.00184,66605.0,66604.0,3.3385663]
[1721718157825,0.00184,66605.0,66604.0,3.0382843]
[1721718158063,0.00184,66605.0,66604.0,2.5525387]
[1721718158271,0.00184,66605.0,66604.0,2.5025387]
[1721718159483,0.00184,66605.0,66604.0,2.35557605]
[1721718159724,0.00184,66605.0,66604.0,2.65585805]
[1721718159948,0.00184,66605.0,66604.0,2.35557605]
[1721718160248,0.00184,66605.0,66604.0,2.35435229]
[1721718160394,0.00184,66605.0,66604.0,2.0419863]
[1721718160595,0.00184,66605.0,66604.0,2.35435225]
[1721718161184,0.00184,66605.0,66604.0,2.83427556]
[1721718161818,0.00184,66605.0,66604.0,2.83706956]
[1721718162214,0.00184,66605.0,66604.0,2.90446264]
[1721718162434,0.00184,66605.0,66604.0,2.77711075]
[1721718162641,0.00184,66605.0,66604.0,2.77990475]
[1721718163179,0.00184,66605.0,66604.0,2.69010691]
[1721718163357,0.00184,66605.0,66604.0,2.72990475]
[1721718163651,0.00184,66605.0,66604.0,2.64201191]
[1721718163878,0.00184,66605.0,66604.0,2.24160819]
[1721718164080,0.00184,66605.0,66604.0,2.16430819]
[1721718164560,0.00184,66605.0,66604.0,1.63982686]
[1721718165643,0.00184,66605.0,66604.0,1.33954486]
[1721718165644,0.14424,66605.0,66604.0,1.33954486]
[1721718166516,0.14324,66605.0,66604.0,0.9009403]
[1721718166660,0.14324,66605.0,66604.0,1.01194307]
[1721718166876,0.14324,66605.0,66604.0,1.2292223]
[1721718167086,0.14324,66605.0,66604.0,1.32559417]
[1721718167284,0.14324,66605.0,66604.0,1.31159417]
[1721718167641,0.14324,66605.0,66604.0,1.33959417]
[1721718168018,0.14324,66605.0,66604.0,0.73903017]
[1721718168310,0.14324,66605.0,66604.0,1.03931217]
[1721718168551,0.14324,66605.0,66604.0,0.44186926]
[1721718168765,0.362702,66605.0,66604.0,0.33149739]
[1721718169102,0.362702,66605.0,66604.0,0.31749739]
[1721718169335,0.362702,66605.0,66604.0,0.30349739]
[1721718169336,0.662979,66605.0,66604.0,0.30349739]
[1721718169544,0.662979,66605.0,66604.0,0.31749739]
[1721718169545,1.54941812,66605.0,66604.0,0.31749739]
[1721718169755,1.482433,66605.0,66604.0,0.31749739]
[1721718169953,1.27146949,66605.0,66604.0,0.31428]
[1721718170168,1.182156,66605.0,66604.0,0.30828]
[1721718170370,1.482433,66605.0,66604.0,0.30028]
[1721718170572,1.582433,66605.0,66604.0,0.16338]
[1721718170782,1.586433,66605.0,66604.0,0.16338]
[1721718170993,1.66240817,66605.0,66604.0,0.15038]
[1721718171198,1.586433,66605.0,66604.0,0.15038]
[1721718171401,1.586433,66605.0,66604.0,0.15638]
[1721718171609,1.586433,66605.0,66604.0,0.08978]
[1721718171808,1.586433,66605.0,66575.0,0.324762]
[1721718171809,0.14,66582.0,66577.0,0.002794]
[1721718172013,0.14,66582.0,66580.0,0.002794]
[1721718172244,0.14,66582.0,66581.0,0.15007507]
[1721718173349,0.19,66582.0,66581.0,0.15007507]
[1721718173503,0.22439367,66582.0,66581.0,0.00305516]
[1721718173704,0.05,66581.0,66577.0,0.002794]
[1721718174045,0.1251,66579.0,66578.0,0.14701991]
[1721718174666,0.275297,66579.0,66578.0,0.14701991]
[1721718174867,0.05,66577.0,66575.0,0.024351]
[1721718175069,0.05,66577.0,66576.0,0.82380346]
[1721718175269,0.200202,66577.0,66576.0,0.67678355]
[1721718176098,0.05,66577.0,66576.0,0.67678355]
[1721718176325,0.05,66577.0,66576.0,0.69078355]
[1721718176515,0.05,66577.0,66576.0,0.67678355]
[1721718176815,0.225298,66579.0,66576.0,0.69078355]
[1721718177021,0.1502,66578.0,66576.0,0.69078355]
[1721718177225,0.151202,66577.0,66576.0,0.70478355]
[1721718177555,0.001,66577.0,66576.0,0.70478355]
[1721718177834,0.0751,66579.0,66576.0,0.83780346]
[1721718178004,0.0761,66579.0,66577.0,0.14701991]
[1721718178840,0.0761,66579.0,66577.0,0.21201991]
[1721718178991,0.001,66579.0,66578.0,0.450598]
[1721718179196,0.001,66579.0,66578.0,0.59761791]
[1721718179406,0.0755,66583.0,66578.0,0.44741891]
[1721718179611,0.0755,66583.0,66577.0,0.065]
[1721718179612,0.0755,66583.0,66582.0,0.450571]
[1721718179817,0.0755,66583.0,66582.0,0.59759091]
[1721718180171,0.5807,66590.0,66584.0,0.300371]
[1721718180172,0.0784,66589.0,66584.0,0.300371]
[1721718180344,0.0784,66589.0,66585.0,0.29999691]
[1721718180510,0.0784,66589.0,66585.0,0.29720291]
[1721718180938,0.0784,66589.0,66585.0,0.14701991]
[1721718181140,0.0822,66595.0,66585.0,0.14701991]
[1721718181388,0.0822,66595.0,66594.0,0.150163]
[1721718181590,0.0822,66595.0,66594.0,0.14701991]
[1721718181795,0.0822,66595.0,66594.0,0.30037223]
[1721718182139,0.0822,66595.0,66594.0,0.60069923]
[1721718182339,0.0822,66595.0,66594.0,0.30037223]
[1721718182542,0.0822,66595.0,66594.0,0.15020923]
[1721718182754,0.09042,66595.0,66594.0,0.15020923]
[1721718183173,0.09042,66595.0,66594.0,0.30037223]
[1721718183376,0.09042,66595.0,66594.0,0.61069923]
[1721718183377,0.0822,66595.0,66594.0,0.61069923]
[1721718183585,0.1789,66601.0,66596.0,0.150159]
[1721718183785,0.1789,66601.0,66596.0,0.14701991]
[1721718183959,0.1789,66601.0,66597.0,0.00319106]
[1721718184201,0.0789,66601.0,66598.0,0.14701991]
[1721718184394,0.0789,66601.0,66600.0,0.45045]
[1721718184623,0.0789,66601.0,66600.0,0.59746991]
[1721718184825,0.0789,66601.0,66600.0,0.60064028]
[1721718185028,0.0789,66601.0,66600.0,0.15019028]
[1721718185237,0.0789,66601.0,66600.0,0.30034028]
[1721718186372,0.0789,66601.0,66600.0,0.60064028]
[1721718186577,0.0789,66601.0,66600.0,0.30034028]
[1721718186990,0.0789,66601.0,66600.0,0.31434028]
[1721718187636,0.0789,66601.0,66600.0,0.32434028]
[1721718187853,0.0789,66601.0,66600.0,0.17419028]
[1721718188295,0.1289,66601.0,66600.0,0.17419028]
[1721718188667,0.0789,66601.0,66600.0,0.32434028]
[1721718189421,0.00084,66605.0,66604.0,0.150141]
[1721718189624,0.00084,66605.0,66604.0,0.60060226]
[1721718190844,0.00084,66605.0,66604.0,0.61360226]
[1721718191045,0.00084,66605.0,66604.0,0.61860226]
[1721718191248,0.00084,66605.0,66604.0,0.91888426]
[1721718191451,0.00084,66605.0,66604.0,1.01690269]
[1721718191679,0.00084,66605.0,66604.0,1.40468469]
[1721718191875,0.00084,66605.0,66604.0,1.30666626]
[1721718192124,0.00084,66605.0,66604.0,1.38386626]
[1721718192328,0.00084,66605.0,66604.0,1.37086626]
[1721718192736,0.00084,66605.0,66604.0,1.38486626]
[1721718193089,0.00084,66605.0,66604.0,1.37086626]
[1721718193495,0.00084,66605.0,66604.0,1.38486626]
[1721718193692,0.00084,66605.0,66604.0,1.37986626]
[1721718193897,0.00084,66605.0,66604.0,1.36586626]
[1721718194340,0.00084,66605.0,66604.0,1.37986626]
[1721718194499,0.00084,66605.0,66604.0,1.36586626]
[1721718194953,0.00084,66605.0,66604.0,1.37986626]
[1721718195787,0.00084,66605.0,66604.0,1.39386626]
[1721718195964,0.00084,66605.0,66604.0,1.36586626]
[1721718196170,0.00084,66605.0,66604.0,1.37986626]
[1721718196580,0.00084,66605.0,66604.0,1.31666626]
[1721718196783,0.00084,66605.0,66604.0,1.30266626]
[1721718197100,0.00084,66605.0,66604.0,0.99338426]
[1721718197524,0.00084,66605.0,66604.0,0.97938426]
[1721718197950,0.00084,66605.0,66604.0,0.99338426]
[1721718198585,0.00084,66605.0,66604.0,1.00738426]
[1721718199132,0.00084,66605.0,66604.0,0.99338426]
[1721718199567,0.00084,66605.0,66604.0,1.03038426]
[1721718199779,0.00084,66605.0,66604.0,1.33066626]
[1721718200196,0.00084,66605.0,66604.0,1.31666626]
[1721718200551,0.00084,66605.0,66604.0,1.33066626]
[1721718201365,0.00084,66605.0,66604.0,1.30266626]
[1721718201551,0.00084,66605.0,66604.0,1.28866626]
[1721718201774,0.00084,66605.0,66604.0,1.30266626]
[1721718201938,0.00084,66605.0,66604.0,1.28866626]
[1721718202356,0.00084,66605.0,66604.0,1.30266626]
[1721718203381,0.00084,66605.0,66604.0,1.60294626]
[1721718203591,0.00084,66605.0,66604.0,1.61694626]
[1721718204236,0.00084,66605.0,66604.0,1.63094626]
[1721718204726,0.00084,66605.0,66604.0,2.12645586]
[1721718204923,0.00084,66605.0,66604.0,2.12645256]
[1721718205226,0.00084,66605.0,66604.0,2.14045256]
[1721718205602,0.00084,66605.0,66604.0,2.15445256]
[1721718205813,0.00084,66605.0,66604.0,2.30141521]
[1721718205990,0.00084,66605.0,66604.0,2.35141521]
[1721718206213,0.00084,66605.0,66604.0,2.36541521]
[1721718206829,0.00084,66605.0,66604.0,2.35141521]
[1721718206998,0.00084,66605.0,66604.0,1.85417056]
[1721718207223,0.00084,66605.0,66604.0,1.81817056]
[1721718207429,0.00084,66605.0,66604.0,1.70904626]
[1721718207629,0.00084,66605.0,66604.0,1.78982289]
[1721718208054,0.00084,66605.0,66604.0,1.80382289]
[1721718208452,0.00084,66605.0,66604.0,1.78982289]
[1721718209220,0.00084,66605.0,66604.0,1.80382289]
[1721718209535,0.00084,66605.0,66604.0,1.78982289]
[1721718210177,0.00084,66605.0,66604.0,1.77582289]
[1721718210449,0.00084,66605.0,66604.0,1.66704626]
[1721718210653,0.00084,66605.0,66604.0,1.7895732]
[1721718211513,0.00084,66605.0,66604.0,1.8175732]
[1721718212338,0.00084,66605.0,66604.0,1.7895732]
[1721718213171,0.00084,66605.0,66604.0,1.8035732]
[1721718213545,0.00084,66605.0,66604.0,1.69504626]
[1721718213746,0.00084,66605.0,66604.0,1.80366238]
[1721718213951,0.00084,66605.0,66604.0,1.78966238]
[1721718214156,0.00084,66605.0,66604.0,1.77566238]
[1721718214360,0.00084,66605.0,66604.0,1.78966238]
[1721718214824,0.00084,66605.0,66604.0,1.80366238]
[1721718216861,0.00084,66605.0,66604.0,1.80337472]
[1721718219863,0.00084,66605.0,66604.0,1.80341172]
[1721718220264,0.00084,66605.0,66604.0,1.94087406]
[1721718220699,0.00084,66605.0,66604.0,1.80341172]
[1721718220893,0.00084,66605.0,66604.0,1.72531172]
[1721718222153,0.00084,66605.0,66604.0,1.86319448]
[1721718222903,0.00084,66605.0,66604.0,1.8636584]
[1721718225293,0.00084,66605.0,66604.0,1.72577655]
[1721718225494,0.00084,66605.0,66604.0,1.86337801]
[1721718225849,0.00084,66605.0,66604.0,1.61694626]
[1721718226147,0.00084,66605.0,66604.0,1.86308334]
[1721718229001,0.00084,66605.0,66604.0,1.61694626]
[1721718229198,0.00084,66605.0,66604.0,1.86280046]
[1721718230020,0.00084,66605.0,66604.0,2.00976311]
[1721718230734,0.00084,66605.0,66604.0,1.86280046]
[1721718232060,0.00084,66605.0,66604.0,1.86102483]
[1721718232258,0.00084,66605.0,66604.0,1.91102483]
[1721718232459,0.00084,66605.0,66604.0,2.04052483]
[1721718232870,0.00084,66605.0,66604.0,2.34080683]
[1721718233114,0.00084,66605.0,66604.0,3.04406381]
[1721718233292,0.00084,66605.0,66604.0,2.96259829]
[1721718233491,0.4696,66622.0,66621.0,1.050717]
[1721718233737,0.0788,66625.0,66624.0,0.450288]
[1721718233902,0.079,66632.0,66631.0,0.15008]
[1721718234102,0.079,66632.0,66631.0,0.70411127]
[1721718234302,0.079,66632.0,66631.0,0.60026094]
[1721718234526,0.079,66632.0,66631.0,1.00726877]
[1721718234725,0.079,66632.0,66631.0,1.30742877]
[1721718234964,0.079,66632.0,66631.0,1.30772628]
[1721718236315,0.079,66632.0,66631.0,1.20058094]
[1721718236487,0.4696,66634.0,66633.0,0.450226]
[1721718236693,0.4696,66634.0,66633.0,0.89739691]
[1721718236867,0.4696,66634.0,66633.0,0.90039756]
[1721718237596,0.0822,66636.0,66635.0,0.450213]
[1721718237805,0.0822,66636.0,66635.0,0.59723291]
[1721718238007,0.0822,66636.0,66635.0,0.60023317]
[1721718238994,0.1322,66636.0,66635.0,0.30009117]
[1721718239152,0.1322,66636.0,66635.0,0.60023317]
[1721718239970,0.04469074,66641.0,66635.0,0.22492017]
[1721718240174,0.08414,66642.0,66641.0,0.150057]
[1721718240175,0.00084,66642.0,66641.0,0.150057]
[1721718240399,0.00084,66642.0,66641.0,1.60502754]
[1721718240602,0.00084,66642.0,66641.0,2.13898694]
[1721718240885,0.00084,66642.0,66641.0,2.13912322]
[1721718241035,0.00084,66642.0,66641.0,1.83900822]
[1721718241445,0.00084,66642.0,66641.0,2.23472322]
[1721718241652,0.00084,66642.0,66641.0,2.27493085]
[1721718241878,0.00084,66642.0,66641.0,2.26093085]
[1721718242225,0.00084,66642.0,66641.0,2.27493085]
[1721718242428,0.00084,66642.0,66641.0,2.26093085]
[1721718242679,0.00084,66642.0,66641.0,2.22072322]
[1721718242955,0.00084,66642.0,66641.0,2.27072322]
[1721718243208,0.00084,66642.0,66641.0,2.28472322]
[1721718243449,0.00084,66642.0,66641.0,2.29895165]
[1721718243679,0.00084,66642.0,66641.0,2.45385165]
[1721718244121,0.00084,66642.0,66641.0,3.45396665]
[1721718244124,0.00084,66660.0,66648.0,1.100294]
[1721718244389,0.00084,66660.0,66648.0,2.44548027]
[1721718244635,0.00084,66660.0,66648.0,2.87145028]
[1721718244913,0.00084,66660.0,66659.0,1.247419]
[1721718245163,0.00084,66660.0,66659.0,2.21118966]
[1721718245435,0.00084,66660.0,66659.0,2.36103621]
[1721718246238,0.00084,66660.0,66659.0,3.20312944]
[1721718246516,0.00084,66660.0,66659.0,2.47383233]
[1721718246755,0.00084,66660.0,66659.0,2.47094843]
[1721718247278,0.00084,66660.0,66659.0,2.26446556]
[1721718248246,0.00084,66660.0,66659.0,2.28739807]
[1721718248453,0.00084,66660.0,66659.0,2.27339807]
[1721718248645,0.00084,66660.0,66659.0,2.30139807]
[1721718248901,0.00084,66660.0,66659.0,2.25139807]
[1721718249090,0.00084,66660.0,66659.0,2.00723542]
[1721718249295,0.00084,66660.0,66659.0,2.02123542]
[1721718249438,0.00084,66660.0,66659.0,2.00723542]
[1721718250087,0.00084,66660.0,66659.0,2.02123542]
[1721718250853,0.00084,66660.0,66659.0,2.07123542]
[1721718251097,0.00084,66660.0,66659.0,2.25419807]
[1721718251413,0.00084,66660.0,66659.0,2.26819807]
[1721718251757,0.00084,66660.0,66659.0,2.24019807]
[1721718251963,0.00084,66660.0,66659.0,2.26819807]
[1721718252749,0.00846,66672.0,66670.0,0.499977]
[1721718252929,0.00846,66672.0,66670.0,1.63505691]
[1721718253432,0.00846,66672.0,66670.0,1.93504191]
[1721718253636,0.00846,66672.0,66670.0,2.01434191]
[1721718253783,0.00846,66672.0,66670.0,2.06434191]
[1721718253987,0.00846,66672.0,66671.0,1.752684]
[1721718254243,0.00846,66672.0,66671.0,2.38818391]
[1721718254373,0.00846,66672.0,66671.0,2.38538991]
[1721718254572,0.00846,66672.0,66671.0,2.08540991]
[1721718254803,0.00846,66672.0,66671.0,2.23237256]
[1721718255070,0.00846,66672.0,66671.0,2.53235256]
[1721718255605,0.00846,66672.0,66671.0,2.54635256]
[1721718255850,0.00846,66672.0,66671.0,2.53235256]
[1721718256230,0.00846,66672.0,66671.0,2.56035256]
[1721718256895,0.00846,66672.0,66671.0,2.21037256]
[1721718257106,0.00846,66672.0,66671.0,2.16037256]
[1721718258063,0.00846,66672.0,66671.0,2.14637256]
[1721718258509,0.00846,66672.0,66671.0,2.16037256]
[1721718259086,0.00846,66672.0,66671.0,2.14637256]
[1721718259514,0.00846,66672.0,66671.0,2.21037256]
[1721718259724,0.00846,66672.0,66671.0,2.26037256]
[1721718261702,0.00846,66672.0,66671.0,2.24637256]
[1721718262436,0.00846,66672.0,66671.0,2.14637256]
[1721718262621,0.00846,66672.0,66671.0,2.19637256]
[1721718262823,0.00846,66672.0,66671.0,2.21037256]
[1721718263024,0.00846,66672.0,66671.0,2.26037256]
[1721718263659,0.00846,66672.0,66671.0,2.24637256]
[1721718264088,0.00846,66672.0,66671.0,2.26037256]
[1721718264526,0.00846,66672.0,66671.0,2.36810948]
[1721718264904,0.00846,66672.0,66671.0,2.36256948]
[1721718265355,0.00846,66672.0,66671.0,2.37656948]
[1721718265530,0.00846,66672.0,66671.0,2.27656948]
[1721718266994,0.00846,66672.0,66671.0,2.32656948]
[1721718267537,0.00846,66672.0,66671.0,2.32644874]
[1721718267796,0.00846,66672.0,66671.0,2.37644874]
[1721718269115,0.00846,66672.0,66671.0,2.27644874]
[1721718269520,0.00846,66672.0,66671.0,1.74100609]
[1721718270376,0.00846,66672.0,66671.0,1.63338991]
[1721718270579,0.00846,66672.0,66671.0,1.04102079]
[1721718270722,0.09066,66672.0,66671.0,1.04102079]
[1721718270923,0.09066,66672.0,66671.0,1.23340991]
[1721718271608,0.09066,66672.0,66671.0,1.48766043]
[1721718271826,0.09066,66672.0,66671.0,1.78764043]
[1721718272025,0.09066,66672.0,66671.0,1.81064043]
[1721718272222,0.09066,66672.0,66671.0,1.78264043]
[1721718272424,0.09066,66672.0,66671.0,1.49666043]
[1721718272653,0.09066,66672.0,66671.0,1.51066043]
[1721718272803,0.09066,66672.0,66671.0,1.49666043]
[1721718273005,0.09066,66672.0,66671.0,1.33569778]
[1721718273204,0.09066,66672.0,66671.0,1.64967778]
[1721718273415,0.09066,66672.0,66671.0,1.66336761]
[1721718273572,0.09066,66672.0,66671.0,1.66336749]
[1721718273775,0.00846,66672.0,66671.0,1.64936749]
[1721718273980,0.00846,66672.0,66671.0,1.79633014]
[1721718274182,0.00846,66672.0,66671.0,1.81033014]
[1721718274384,0.00846,66672.0,66671.0,1.79633014]
[1721718274700,0.00846,66672.0,66671.0,1.81033014]
[1721718274900,0.00846,66672.0,66671.0,2.16031014]
[1721718275103,0.00846,66672.0,66671.0,2.21131014]
[1721718275335,0.00846,66672.0,66671.0,2.22531014]
[1721718275537,0.00846,66672.0,66671.0,2.21131014]
[1721718275744,0.00846,66672.0,66671.0,2.19731014]
[1721718275982,0.002,66679.0,66678.0,1.34977]
[1721718276152,0.002,66679.0,66678.0,2.06669449]
[1721718276371,0.002,66679.0,66678.0,2.06719015]
[1721718276581,0.002,66679.0,66678.0,2.17869015]
[1721718277636,0.002,66679.0,66678.0,2.19269015]
[1721718278046,0.002,66679.0,66678.0,2.201441]
[1721718278495,0.002,66679.0,66678.0,2.215441]
[1721718279245,0.002,66679.0,66678.0,2.201441]
[1721718279429,0.002,66679.0,66678.0,2.215441]
[1721718279762,0.002,66679.0,66678.0,2.35198907]
[1721718279996,0.002,66679.0,66678.0,2.215441]
[1721718280162,0.002,66679.0,66678.0,2.35198907]
[1721718281375,0.002,66679.0,66678.0,2.30198907]
[1721718281791,0.002,66679.0,66678.0,2.35198907]
[1721718282242,0.002,66679.0,66678.0,2.40198907]
[1721718282443,0.002,66679.0,66678.0,2.4020469]
[1721718283023,0.002,66679.0,66678.0,2.8019959]